bitfinex-derivatives/quotes_BTCF0:USTF0_20250913
["timestamp","ask_amount","ask_price","bid_price","bid_amount"]
[1757735559126,0.19814249,115990.0,115980.0,1.1872]
[1757735559523,0.19814249,115990.0,115980.0,1.30494109]
[1757735560132,0.19814249,115990.0,115980.0,1.1872]
[1757735560335,0.19814249,115990.0,115980.0,1.30494109]
[1757735561432,0.0804014,115990.0,115980.0,0.8264]
[1757735561634,0.19814249,115990.0,115980.0,0.8264]
[1757735561836,0.19814249,115990.0,115980.0,0.94414109]
[1757735562133,0.19814249,115990.0,115980.0,0.8264]
[1757735562525,0.19814249,115990.0,115980.0,0.94414109]
[1757735563437,0.19814249,115990.0,115980.0,0.8264]
[1757735563733,0.19814249,115990.0,115980.0,0.94414109]
[1757735564636,0.19814249,115990.0,115980.0,0.8264]
[1757735564835,0.19814249,115990.0,115980.0,0.94414109]
[1757735565035,0.19814249,115990.0,115980.0,0.8264]
[1757735565235,0.19814249,115990.0,115980.0,0.94414109]
[1757735566733,0.0804014,115990.0,115980.0,0.94414109]
[1757735566934,0.19814249,115990.0,115980.0,0.94414109]
[1757735568338,0.19814249,115990.0,115980.0,0.8264]
[1757735568540,0.19814249,115990.0,115980.0,0.94414109]
[1757735568736,0.19814249,115990.0,115980.0,0.8264]
[1757735568935,0.19814249,115990.0,115980.0,0.94414109]
[1757735569135,0.19814249,115990.0,115980.0,0.8264]
[1757735569335,0.19814249,115990.0,115980.0,0.94414109]
[1757735571249,0.0804014,115990.0,115980.0,0.8264]
[1757735571436,0.19814249,115990.0,115980.0,0.94414109]
[1757735572851,0.0804014,115990.0,115980.0,0.94414109]
[1757735573047,0.19814249,115990.0,115980.0,0.94414109]
[1757735573548,0.0804014,115990.0,115980.0,0.94414109]
[1757735573750,0.19814249,115990.0,115980.0,0.94414109]
[1757735574452,0.0804014,115990.0,115980.0,0.94414109]
[1757735575447,0.0804014,115990.0,115980.0,1.06188218]
[1757735575952,0.0804014,115990.0,115980.0,0.8264]
[1757735576152,0.0804014,115990.0,115980.0,1.06188218]
[1757735577358,0.08069245,115990.0,115980.0,1.06188218]
[1757735580455,0.08069245,115990.0,115980.0,0.8264]
[1757735581258,0.08069245,115990.0,115980.0,1.06188218]
[1757735585063,0.08069245,115990.0,115980.0,0.8264]
[1757735585263,0.08069245,115990.0,115980.0,1.06188218]
[1757735586856,0.08069245,115990.0,115980.0,0.8264]
[1757735587057,0.08069245,115990.0,115980.0,1.06188218]
[1757735587558,0.19843354,115990.0,115980.0,0.94414109]
[1757735587754,0.08069245,115990.0,115980.0,0.94414109]
[1757735588167,0.08069245,115990.0,115980.0,1.06188218]
[1757735588467,0.0608773,115990.0,115980.0,1.06188218]
[1757735590175,0.0608773,115990.0,115980.0,0.8264]
[1757735590359,0.0608773,115990.0,115980.0,1.06188218]
[1757735592270,0.09188002,115990.0,115980.0,1.06188218]
[1757735592470,0.0608773,115990.0,115980.0,0.8264]
[1757735592769,0.0608773,115990.0,115980.0,1.06188218]
[1757735593069,0.09188002,115990.0,115980.0,1.06188218]
[1757735594472,0.09188002,115990.0,115980.0,0.8264]
[1757735594666,0.09188002,115990.0,115980.0,1.06188218]
[1757735596372,0.09188002,115990.0,115980.0,0.8264]
[1757735596574,0.11361681,115990.0,115980.0,1.06188218]
[1757735596769,0.13838411,115990.0,115980.0,1.06188218]
[1757735597168,0.09188002,115990.0,115980.0,1.06188218]
[1757735597369,0.09188002,115990.0,115980.0,1.42268218]
[1757735597771,0.09188002,115990.0,115980.0,1.1872]
[1757735598174,0.09188002,115990.0,115980.0,1.42268218]
[1757735601474,0.09188002,115990.0,115980.0,1.1872]
[1757735601780,0.10738139,115990.0,115980.0,1.1872]
[1757735601973,0.10738139,115990.0,115980.0,1.42268218]
[1757735603180,0.22512248,115990.0,115980.0,0.47954109]
[1757735603381,0.20962157,115990.0,115980.0,1.30286109]
[1757735603775,0.09188048,115990.0,115980.0,1.30286109]
[1757735604582,0.09188048,115990.0,115980.0,1.18512]
[1757735604780,0.09188048,115990.0,115980.0,1.30286109]
[1757735605480,0.20962157,115990.0,115980.0,1.30286109]
[1757735606482,0.18021714,115990.0,115980.0,1.36179332]
[1757735608180,0.14921396,115990.0,115980.0,1.36179332]
[1757735610181,0.0608773,115990.0,115980.0,1.36179332]
[1757735610382,0.14921396,115990.0,115980.0,1.45012998]
[1757735610882,0.14921396,115990.0,115980.0,1.18512]
[1757735611283,0.14921396,115990.0,115980.0,1.36179332]
[1757735611481,0.18021714,115990.0,115980.0,1.45012998]
[1757735611780,0.18021714,115990.0,115980.0,1.36179332]
[1757735612282,0.09188048,115990.0,115980.0,1.36179332]
[1757735612479,0.18021714,115990.0,115980.0,1.36179332]
[1757735612679,0.18021714,115990.0,115980.0,1.18512]
[1757735612881,0.18021714,115990.0,115980.0,1.36179332]
[1757735614182,0.18021714,115990.0,115980.0,1.18512]
[1757735614384,0.18021714,115990.0,115980.0,1.36179332]
[1757735614781,0.22672123,115990.0,115980.0,1.36179332]
[1757735616591,0.13838457,115990.0,115980.0,1.36179332]
[1757735616989,0.18021714,115990.0,115980.0,1.36179332]
[1757735619093,0.09188048,115990.0,115980.0,1.36179332]
[1757735619484,0.18021714,115990.0,115980.0,1.36179332]
[1757735621791,0.09188048,115990.0,115980.0,1.36179332]
[1757735621996,0.18021714,115990.0,115980.0,1.36179332]
[1757735622595,0.18021714,115990.0,115980.0,1.18512]
[1757735622794,0.18021714,115990.0,115980.0,1.36179332]
[1757735623395,0.22672123,115990.0,115980.0,1.36179332]
[1757735624697,0.18021714,115990.0,115980.0,1.36179332]
[1757735625790,0.18021714,115990.0,115980.0,1.27345666]
[1757735625997,0.18021714,115990.0,115980.0,1.36179332]
[1757735626495,0.09188048,115990.0,115980.0,1.36179332]
[1757735626695,0.18021714,115990.0,115980.0,1.36179332]
[1757735627485,0.09188048,115990.0,115980.0,1.36179332]
[1757735627689,0.18021714,115990.0,115980.0,1.36179332]
[1757735629698,0.09188048,115990.0,115980.0,1.36179332]
[1757735629903,0.18021714,115990.0,115980.0,1.36179332]
[1757735631000,0.18021714,115990.0,115980.0,1.18512]
[1757735631197,0.09188048,115990.0,115980.0,1.36179332]
[1757735631394,0.18021714,115990.0,115980.0,1.36179332]
[1757735632497,0.09188048,115990.0,115980.0,1.36179332]
[1757735632698,0.06947048,115990.0,115980.0,2.08092998]
[1757735632903,0.0247673,115990.0,115980.0,2.08092998]
[1757735633296,0.06947048,116000.0,115980.0,2.08092998]
[1757735633507,0.06930446,116000.0,115990.0,0.62580998]
[1757735635905,0.06930446,116000.0,115990.0,0.62680998]
[1757735638006,0.11580855,116000.0,115990.0,0.62680998]
[1757735639309,0.06930446,116000.0,115990.0,0.62680998]
[1757735641208,0.09080446,116000.0,115990.0,0.62680998]
[1757735641400,0.10630537,116000.0,115990.0,0.62680998]
[1757735642112,0.10630537,116000.0,115990.0,0.3618]
[1757735642411,0.10630537,116000.0,115990.0,0.62680998]
[1757735643407,0.10630537,116000.0,115990.0,0.64403885]
[1757735644712,0.08480537,116000.0,115990.0,0.64403885]
[1757735646409,0.10630537,116000.0,115990.0,0.37902887]
[1757735646610,0.10630537,116000.0,115990.0,0.64403885]
[1757735648019,0.0907535,116000.0,115990.0,0.64403885]
[1757735649617,0.11265631,116000.0,115990.0,0.64403885]
[1757735649817,0.13725759,116000.0,115990.0,0.64403885]
[1757735650715,0.0692535,116000.0,115990.0,0.64403885]
[1757735652310,0.0692535,116000.0,115990.0,1.46475885]
[1757735652311,0.05980128,116000.0,115990.0,1.46475885]
[1757735652506,0.05980128,116000.0,115990.0,1.37642219]
[1757735652812,0.05980128,116000.0,115990.0,1.46475885]
[1757735654310,0.0692535,116000.0,115990.0,1.71475885]
[1757735654521,0.03830128,116000.0,115990.0,2.28475885]
[1757735654813,0.03830128,116000.0,115990.0,1.71475885]
[1757735660423,0.02460128,116000.0,115990.0,2.33333913]
[1757735662727,0.02460128,116000.0,115990.0,1.51261913]
[1757735662929,0.02460128,116000.0,115990.0,2.33253913]
[1757735664622,0.02460128,116000.0,115990.0,2.40181386]
[1757735664821,0.01362,116010.0,115990.0,2.40181386]
[1757735665018,0.01362,116010.0,116000.0,0.62580998]
[1757735665230,0.01362,116010.0,116000.0,1.23580998]
[1757735666324,0.01362,116010.0,116000.0,1.14747332]
[1757735666628,0.01362,116010.0,116000.0,1.20618152]
[1757735667823,0.01362,116010.0,116000.0,1.41003218]
[1757735668030,0.01299,116020.0,116000.0,1.32387228]
[1757735668228,0.01299,116020.0,116010.0,1.29809076]
[1757735668424,0.01299,116020.0,116010.0,1.43303359]
[1757735669823,0.01299,116020.0,116010.0,1.57403359]
[1757735671930,0.01299,116020.0,116010.0,1.43403359]
[1757735672125,0.01299,116020.0,116010.0,1.16443359]
[1757735672423,0.01299,116020.0,116010.0,1.98371359]
[1757735674435,0.01299,116020.0,116010.0,1.98355359]
[1757735677038,0.03702416,116020.0,116010.0,1.98355359]
[1757735680232,0.03702416,116020.0,116010.0,1.16443359]
[1757735680427,0.03702416,116020.0,116010.0,0.61905207]
[1757735680633,0.03702416,116020.0,116010.0,1.67315359]
[1757735683742,0.03702416,116020.0,116010.0,1.67299359]
[1757735684149,0.03702416,116020.0,116010.0,0.85443359]
[1757735684336,0.03702416,116020.0,116010.0,1.67287359]
[1757735692853,0.03702416,116020.0,116010.0,2.05287359]
[1757735696354,0.03702416,116020.0,116010.0,2.05223359]
[1757735696651,0.03702416,116020.0,116010.0,1.43207359]
[1757735696957,0.03702416,116020.0,116010.0,1.66207359]
[1757735697650,0.05840416,116020.0,116010.0,1.66207359]
[1757735698560,0.03702416,116020.0,116010.0,1.66207359]
[1757735699054,0.05840416,116020.0,116010.0,0.60905207]
[1757735699261,0.05840416,116020.0,116010.0,1.54418283]
[1757735700545,0.05840416,116020.0,116010.0,0.72674283]
[1757735700746,0.05840416,116020.0,116010.0,1.54410283]
[1757735701051,0.05840416,116020.0,116010.0,1.31410283]
[1757735702658,0.05840416,116020.0,116010.0,1.54410283]
[1757735702859,0.05840416,116020.0,116010.0,1.31410283]
[1757735703160,0.05845902,116020.0,116010.0,1.19641207]
[1757735703353,0.05845902,116020.0,116010.0,1.31410283]
[1757735703759,0.05845902,116020.0,116010.0,1.31398283]
[1757735704254,0.17614978,116020.0,116010.0,1.31398283]
[1757735704854,0.05845902,116020.0,116010.0,1.31398283]
[1757735705361,0.05845902,116020.0,116010.0,0.70674283]
[1757735705562,0.42614978,116020.0,116010.0,1.19621207]
[1757735705763,0.42614978,116020.0,116010.0,1.31390283]
[1757735706263,0.30845902,116020.0,116010.0,1.31390283]
[1757735706758,0.28707902,116020.0,116010.0,1.31390283]
[1757735707162,0.28707902,116020.0,116010.0,1.19621207]
[1757735707459,0.28707902,116020.0,116010.0,1.31390283]
[1757735708660,0.28707902,116020.0,116010.0,1.19621207]
[1757735708862,0.28707902,116020.0,116010.0,1.31390283]
[1757735717171,0.28707902,116020.0,116010.0,1.19621207]
[1757735717464,0.28707902,116020.0,116010.0,1.31390283]
[1757735719170,0.28707902,116020.0,116010.0,1.19621207]
[1757735719372,0.28707902,116020.0,116010.0,1.31390283]
[1757735720275,0.26299,116020.0,116010.0,1.31390283]
[1757735720471,0.28741981,116020.0,116010.0,1.31390283]
[1757735721971,0.31837203,116020.0,116010.0,1.31390283]
[1757735722172,0.31837203,116020.0,116010.0,1.19621207]
[1757735722374,0.31837203,116020.0,116010.0,1.31390283]
[1757735726375,0.31837203,116020.0,116010.0,1.46102822]
[1757735727077,0.31837203,116020.0,116010.0,1.19621207]
[1757735727277,0.31837203,116020.0,116010.0,1.46102822]
[1757735728180,0.3339239,116020.0,116010.0,1.46102822]
[1757735730279,0.3339239,116020.0,116010.0,1.19621207]
[1757735730482,0.3339239,116020.0,116010.0,1.46102822]
[1757735730980,0.3339239,116020.0,116010.0,1.19621207]
[1757735731282,0.3339239,116020.0,116010.0,1.46102822]
[1757735731780,0.3339239,116020.0,116010.0,1.70102822]
[1757735731976,0.3339239,116020.0,116010.0,1.66102822]
[1757735732176,0.3339239,116020.0,116010.0,1.68102822]
[1757735732482,0.3339239,116020.0,116010.0,1.46102822]
[1757735733585,0.3339239,116020.0,116010.0,1.65102822]
[1757735733774,0.3339239,116020.0,116010.0,1.46102822]
[1757735734084,0.3339239,116020.0,116010.0,1.66102822]
[1757735734282,0.3339239,116020.0,116010.0,1.46102822]
[1757735735784,0.3339239,116020.0,116010.0,1.65102822]
[1757735735983,0.36493959,116020.0,116010.0,1.46102822]
[1757735736181,0.36493959,116020.0,116010.0,1.70102822]
[1757735736372,0.36493959,116020.0,116010.0,1.19621207]
[1757735736576,0.36493959,116020.0,116010.0,1.46102822]
[1757735737778,0.36493959,116020.0,116010.0,1.68102822]
[1757735737984,0.36493959,116020.0,116010.0,1.41621207]
[1757735738184,0.3184355,116020.0,116010.0,1.41621207]
[1757735738485,0.3184355,116020.0,116010.0,1.68102822]
[1757735739384,0.0684355,116020.0,116010.0,1.68102822]
[1757735740984,0.0684355,116020.0,116010.0,1.41621207]
[1757735741184,0.0684355,116020.0,116010.0,1.68102822]
[1757735742180,0.0684355,116020.0,116010.0,1.65102822]
[1757735742382,0.0684355,116020.0,116010.0,1.46102822]
[1757735742576,0.0684355,116020.0,116010.0,1.28448412]
[1757735742781,0.0684355,116020.0,116010.0,1.46102822]
[1757735745080,0.0684355,116020.0,116010.0,1.65102822]
[1757735745286,0.0684355,116020.0,116010.0,1.46102822]
[1757735745481,0.0684355,116020.0,116010.0,1.67102822]
[1757735745683,0.0684355,116020.0,116010.0,1.46102822]
[1757735746186,0.0684355,116020.0,116010.0,1.19621207]
[1757735746384,0.0684355,116020.0,116010.0,1.46102822]
[1757735746584,0.0684355,116020.0,116010.0,1.19621207]
[1757735746786,0.0684355,116020.0,116010.0,1.46102822]
[1757735747682,0.0684355,116020.0,116010.0,1.68102822]
[1757735747886,0.0684355,116020.0,116010.0,1.46102822]
[1757735748887,0.0684355,116020.0,116010.0,1.66102822]
[1757735749089,0.0684355,116020.0,116010.0,1.65102822]
[1757735751186,0.0684355,116020.0,116010.0,1.38621207]
[1757735751388,0.0684355,116020.0,116010.0,1.65102822]
[1757735753091,0.0684355,116020.0,116010.0,1.38621207]
[1757735753593,0.0684355,116020.0,116010.0,1.66102822]
[1757735753787,0.0684355,116020.0,116010.0,1.46102822]
[1757735753992,0.0684355,116020.0,116010.0,1.66102822]
[1757735755695,0.0684355,116020.0,116010.0,1.39621207]
[1757735755993,0.0684355,116020.0,116010.0,1.46102822]
[1757735756995,0.0684355,116020.0,116010.0,1.66102822]
[1757735757197,0.0684355,116020.0,116010.0,1.46102822]
[1757735757995,0.0684355,116020.0,116010.0,1.10022822]
[1757735758293,0.0684355,116020.0,116010.0,1.46102822]
[1757735761800,0.0684355,116020.0,116010.0,1.65102822]
[1757735761996,0.0684355,116020.0,116010.0,1.46102822]
[1757735762305,0.03741981,116020.0,116010.0,1.66102822]
[1757735762696,0.03741981,116020.0,116010.0,1.39621207]
[1757735762897,0.03741981,116020.0,116010.0,1.66102822]
[1757735765402,0.03741981,116020.0,116010.0,1.46102822]
[1757735766200,0.03741981,116020.0,116010.0,1.68102822]
[1757735768808,0.05844981,116020.0,116010.0,0.64386822]
[1757735769010,0.14672186,116020.0,116010.0,1.36911617]
[1757735769307,0.05844981,116020.0,116010.0,1.45738822]
[1757735769905,0.0894655,116020.0,116010.0,1.45738822]
[1757735770512,0.05844981,116020.0,116010.0,1.45738822]
[1757735771311,0.05844981,116020.0,116010.0,1.19257207]
[1757735771511,0.05844981,116020.0,116010.0,1.45738822]
[1757735772615,0.05844981,116020.0,116010.0,1.19257207]
[1757735772815,0.05844981,116020.0,116010.0,1.45738822]
[1757735773016,0.14672186,116020.0,116010.0,1.45738822]
[1757735773208,0.05844981,116020.0,116010.0,1.45738822]
[1757735775320,0.0894655,116020.0,116010.0,1.69738822]
[1757735775611,0.0894655,116020.0,116010.0,1.45738822]
[1757735776720,0.05844981,116020.0,116010.0,1.19257207]
[1757735777113,0.05844981,116020.0,116010.0,1.45738822]
[1757735777518,0.0894655,116020.0,116010.0,1.45738822]
[1757735778223,0.0894655,116020.0,116010.0,1.66738822]
[1757735778517,0.13596959,116020.0,116010.0,1.45738822]
[1757735778917,0.1049539,116020.0,116010.0,1.45738822]
[1757735779420,0.13597353,116020.0,116010.0,1.45738822]
[1757735779923,0.08946944,116020.0,116010.0,1.45738822]
[1757735781225,0.17774149,116020.0,116010.0,0.55559617]
[1757735781419,0.17774149,116020.0,116010.0,1.36855617]
[1757735782020,0.22424558,116020.0,116010.0,1.36855617]
[1757735782226,0.19322595,116020.0,116010.0,1.36855617]
[1757735782712,0.17774027,116020.0,116010.0,1.36855617]
[1757735782911,0.17774027,116020.0,116010.0,1.45682822]
[1757735783720,0.08946822,116020.0,116010.0,1.45682822]
[1757735783922,0.22424436,116020.0,116010.0,1.45682822]
[1757735784323,0.17774027,116020.0,116010.0,1.45682822]
[1757735784623,0.17774027,116020.0,116010.0,1.36855617]
[1757735786324,0.08946822,116020.0,116010.0,1.45682822]
[1757735787027,0.05844981,116020.0,116010.0,1.45682822]
[1757735787336,0.14672186,116020.0,116010.0,1.36855617]
[1757735788327,0.05844981,116020.0,116010.0,1.30972355]
[1757735789541,0.05844981,116020.0,116010.0,1.30985057]
[1757735790729,0.17616129,116020.0,116010.0,0.47951148]
[1757735791033,0.17616129,116020.0,116010.0,1.29179148]
[1757735793136,0.05844981,116020.0,116010.0,1.29179148]
[1757735793338,0.17616129,116020.0,116010.0,1.29179148]
[1757735793737,0.05844981,116020.0,116010.0,1.29179148]
[1757735794037,0.05844981,116020.0,116010.0,1.17408]
[1757735794235,0.05844981,116020.0,116010.0,1.29179148]
[1757735795136,0.17616129,116020.0,116010.0,1.29179148]
[1757735795337,0.05844981,116020.0,116010.0,1.29179148]
[1757735795641,0.05844981,116020.0,116010.0,1.17408]
[1757735795839,0.05844981,116020.0,116010.0,1.29179148]
[1757735798341,0.05844981,116020.0,116010.0,1.17408]
[1757735798537,0.17616129,116020.0,116010.0,1.29179148]
[1757735799142,0.17616129,116020.0,116010.0,1.17408]
[1757735799342,0.17616129,116020.0,116010.0,0.3618]
[1757735799643,0.2071797,116020.0,116010.0,1.29135148]
[1757735799838,0.2071797,116020.0,116010.0,1.17364]
[1757735801038,0.17616129,116020.0,116010.0,1.17364]
[1757735801541,0.17616129,116020.0,116010.0,1.29135148]
[1757735802743,0.17616129,116020.0,116010.0,1.17364]
[1757735802943,0.17616129,116020.0,116010.0,1.29135148]
[1757735803839,0.05844981,116020.0,116010.0,1.29135148]
[1757735804044,0.08946822,116020.0,116010.0,1.29135148]
[1757735804245,0.2071797,116020.0,116010.0,1.17364]
[1757735804846,0.08946822,116020.0,116010.0,1.29135148]
[1757735805046,0.2071797,116020.0,116010.0,1.29135148]
[1757735808254,0.08946822,116020.0,116010.0,1.29135148]
[1757735808453,0.2071797,116020.0,116010.0,1.29135148]
[1757735810149,0.25368379,116020.0,116010.0,1.29135148]
[1757735811757,0.25368379,116020.0,116010.0,1.17364]
[1757735811953,0.25368379,116020.0,116010.0,1.29135148]
[1757735812249,0.13597231,116020.0,116010.0,1.29135148]
[1757735812456,0.25368379,116020.0,116010.0,1.29135148]
[1757735813658,0.08946822,116020.0,116010.0,1.29135148]
[1757735813860,0.2071797,116020.0,116010.0,1.29135148]
[1757735814258,0.08946822,116020.0,116010.0,1.29135148]
[1757735814458,0.08946822,116020.0,116010.0,1.17364]
[1757735814660,0.08946822,116020.0,116010.0,1.29135148]
[1757735815164,0.06503841,116020.0,116010.0,1.29135148]
[1757735815356,0.08946822,116020.0,116010.0,1.29135148]
[1757735816762,0.05844981,116020.0,116010.0,1.29135148]
[1757735820368,0.08946822,116020.0,116010.0,1.29135148]
[1757735828073,0.1049539,116020.0,116010.0,1.29135148]
[1757735829074,0.05844981,116020.0,116010.0,1.29135148]
[1757735829273,0.0591038,116020.0,116010.0,1.17364]
[1757735829571,0.0591038,116020.0,116010.0,1.29135148]
[1757735829873,0.10562007,116020.0,116010.0,1.29135148]
[1757735831075,0.10562007,116020.0,116010.0,0.47951148]
[1757735831273,0.10562007,116020.0,116010.0,1.28963148]
[1757735834679,0.10562007,116020.0,116010.0,1.17192]
[1757735834870,0.10562007,116020.0,116010.0,1.28963148]
[1757735838079,0.0591038,116020.0,116010.0,1.28963148]
[1757735838272,0.105619,116020.0,116010.0,0.11871148]
[1757735838475,0.105619,116020.0,116010.0,0.92851148]
[1757735838778,0.105619,116020.0,116010.0,1.28931148]
[1757735838971,0.22333048,116020.0,116010.0,1.1716]
[1757735839171,0.22333048,116020.0,116010.0,1.28931148]
[1757735839583,0.24313289,116020.0,116010.0,1.28931148]
[1757735840181,0.12542141,116020.0,116010.0,1.28931148]
[1757735846286,0.12542141,116020.0,116010.0,1.1716]
[1757735846488,0.12542141,116020.0,116010.0,1.28931148]
[1757735847986,0.12542141,116020.0,116010.0,1.1716]
[1757735848284,0.12542141,116020.0,116010.0,1.28931148]
[1757735850196,0.12542141,116020.0,116010.0,1.1716]
[1757735850396,0.28132284,116020.0,116010.0,1.34816948]
[1757735851897,0.1930381,116020.0,116010.0,1.34816948]
[1757735852098,0.28132284,116020.0,116010.0,1.34816948]
[1757735853793,0.1930381,116020.0,116010.0,1.34816948]
[1757735854094,0.22404534,116020.0,116010.0,1.34816948]
[1757735854296,0.31233008,116020.0,116010.0,1.34816948]
[1757735855791,0.31233008,116020.0,116010.0,1.1716]
[1757735855987,0.22404534,116020.0,116010.0,1.34816948]
[1757735856294,0.31233008,116020.0,116010.0,1.34816948]
[1757735857296,0.22404534,116020.0,116010.0,1.34816948]
[1757735857496,0.31233008,116020.0,116010.0,1.34816948]
[1757735859700,0.22404534,116020.0,116010.0,1.34816948]
[1757735859888,0.31233008,116020.0,116010.0,1.34816948]
[1757735860092,0.28132284,116020.0,116010.0,1.34816948]
[1757735861401,0.28132284,116020.0,116010.0,1.1716]
[1757735861602,0.28132284,116020.0,116010.0,1.34816948]
[1757735861901,0.31233115,116020.0,116010.0,1.34816948]
[1757735863407,0.31233115,116020.0,116010.0,1.1716]
[1757735863606,0.31233115,116020.0,116010.0,1.34816948]
[1757735865802,0.31233115,116020.0,116010.0,1.1716]
[1757735866005,0.31233115,116020.0,116010.0,1.34816948]
[1757735867906,0.28132284,116020.0,116010.0,1.34816948]
[1757735868105,0.23480764,116020.0,116010.0,1.34816948]
[1757735868904,0.23480764,116020.0,116010.0,1.1716]
[1757735869105,0.23480764,116020.0,116010.0,1.34816948]
[1757735869804,0.1465229,116020.0,116010.0,1.34816948]
[1757735870104,0.28132244,116020.0,116010.0,1.34816948]
[1757735872300,0.28132244,116020.0,116010.0,1.1716]
[1757735872700,0.28132244,116020.0,116010.0,1.34816948]
[1757735873108,0.28132244,116020.0,116010.0,1.1716]
[1757735873300,0.28132244,116020.0,116010.0,1.34816948]
[1757735875105,0.28132244,116020.0,116010.0,1.1716]
[1757735875408,0.28132244,116020.0,116010.0,1.34816948]
[1757735877304,0.23480764,116020.0,116010.0,1.34816948]
[1757735877905,0.23480764,116020.0,116010.0,1.1716]
[1757735878100,0.281322,116020.0,116010.0,1.34816948]
[1757735880303,0.31232559,116020.0,116010.0,1.34816948]
[1757735880814,0.22404085,116020.0,116010.0,1.34816948]
[1757735881014,0.31231793,116020.0,116010.0,1.34816948]
[1757735883915,0.26580357,116020.0,116010.0,1.34816948]
[1757735884210,0.31231793,116020.0,116010.0,1.34816948]
[1757735884814,0.22403319,116020.0,116010.0,1.34816948]
[1757735885013,0.31231793,116020.0,116010.0,1.34816948]
[1757735885514,0.22403319,116020.0,116010.0,1.34816948]
[1757735885709,0.26580357,116020.0,116010.0,1.34816948]
[1757735887816,0.17751883,116020.0,116010.0,1.34816948]
[1757735888016,0.26580357,116020.0,116010.0,1.34816948]
[1757735890315,0.26580357,116020.0,116010.0,1.1716]
[1757735890518,0.26580357,116020.0,116010.0,1.34816948]
[1757735891420,0.31231793,116020.0,116010.0,1.34816948]
[1757735892722,0.22403319,116020.0,116010.0,1.34816948]
[1757735893220,0.31231793,116020.0,116010.0,1.34816948]
[1757735893916,0.17751883,116020.0,116010.0,1.34816948]
[1757735894123,0.26580357,116020.0,116010.0,1.34816948]
[1757735896122,0.26580357,116020.0,116010.0,1.1716]
[1757735896323,0.26580357,116020.0,116010.0,1.34816948]
[1757735896529,0.31231793,116020.0,116010.0,1.34816948]
[1757735898327,0.31231793,116020.0,116010.0,1.1716]
[1757735898518,0.31231793,116020.0,116010.0,1.34816948]
[1757735899223,0.28131434,116020.0,116010.0,1.34816948]
[1757735899622,0.28131434,116020.0,116010.0,0.3618]
[1757735899925,0.28131434,116020.0,116010.0,1.34476948]
[1757735902027,0.31230829,116020.0,116010.0,1.34476948]
[1757735903930,0.22402355,116020.0,116010.0,1.1682]
[1757735904123,0.31230829,116020.0,116010.0,1.1682]
[1757735904324,0.22402355,116020.0,116010.0,1.34476948]
[1757735904526,0.31230829,116020.0,116010.0,1.34476948]
[1757735904922,0.28131434,116020.0,116010.0,1.34476948]
[1757735905228,0.28131434,116020.0,116010.0,1.1682]
[1757735905428,0.28131434,116020.0,116010.0,1.34476948]
[1757735905928,0.28131434,116020.0,116010.0,1.1682]
[1757735906128,0.28131434,116020.0,116010.0,1.34476948]
[1757735907731,0.31231715,116020.0,116010.0,1.34476948]
[1757735909838,0.22403241,116020.0,116010.0,1.34476948]
[1757735910134,0.31231715,116020.0,116010.0,1.34476948]
[1757735910329,0.22403241,116020.0,116010.0,1.28591334]
[1757735910535,0.34174575,116020.0,116010.0,1.28591334]
[1757735911234,0.29523139,116020.0,116010.0,1.28591334]
[1757735912939,0.17751805,116020.0,116010.0,1.28591334]
[1757735913235,0.29523139,116020.0,116010.0,1.28591334]
[1757735913424,0.17751805,116020.0,116010.0,1.28591334]
[1757735918238,0.1930296,116020.0,116010.0,1.28591334]
[1757735919239,0.1930296,116020.0,116010.0,1.1682]
[1757735919439,0.1930296,116020.0,116010.0,1.28591334]
[1757735920538,0.14651524,116020.0,116010.0,1.28591334]
[1757735921440,0.19301958,116020.0,116010.0,1.28591334]
[1757735922841,0.19301958,116020.0,116010.0,1.1682]
[1757735923033,0.19301958,116020.0,116010.0,1.28591334]
[1757735925743,0.19301958,116020.0,116010.0,1.1682]
[1757735925942,0.19301958,116020.0,116010.0,1.28591334]
[1757735928148,0.17751588,116020.0,116010.0,1.28591334]
[1757735929645,0.22402022,116020.0,116010.0,1.28591334]
[1757735932350,0.19301958,116020.0,116010.0,1.28591334]
[1757735932551,0.19301958,116020.0,116010.0,1.1682]
[1757735932751,0.19301958,116020.0,116010.0,1.28591334]
[1757735933952,0.19301958,116020.0,116010.0,1.1682]
[1757735934147,0.19301958,116020.0,116010.0,1.28591334]
[1757735936355,0.22402052,116020.0,116010.0,1.28591334]
[1757735938957,0.22402052,116020.0,116010.0,1.1682]
[1757735939152,0.22402052,116020.0,116010.0,1.28591334]
[1757735941055,0.22402052,116020.0,116010.0,1.1682]
[1757735941253,0.22402052,116020.0,116010.0,1.28591334]
[1757735941760,0.22402052,116020.0,116010.0,1.1682]
[1757735941958,0.22402052,116020.0,116010.0,1.28591334]
[1757735946258,0.22482851,116020.0,116010.0,1.28591334]
[1757735948761,0.1839961,116020.0,116010.0,1.60362668]
[1757735948957,0.05688507,116020.0,116010.0,2.46749312]
[1757735949154,0.03386567,116030.0,116010.0,2.46749312]
[1757735949354,0.03386567,116030.0,116020.0,0.71394002]
[1757735949555,0.03386567,116030.0,116020.0,1.39622668]
[1757735950656,0.03386567,116030.0,116020.0,1.51394002]
[1757735953266,0.03386567,116030.0,116020.0,1.52248362]
[1757735953665,0.03386567,116030.0,116020.0,1.88328362]
[1757735954363,0.03386567,116030.0,116020.0,1.76557028]
[1757735955165,0.03386567,116030.0,116020.0,1.88328362]
[1757735956066,0.03386567,116030.0,116020.0,2.68660362]
[1757735956460,0.03386567,116030.0,116020.0,2.56889028]
[1757735957666,0.03386567,116030.0,116020.0,1.84729028]
[1757735957862,0.03386567,116030.0,116020.0,2.56889028]
[1757735958770,0.03386567,116030.0,116020.0,2.3334636]
[1757735958969,0.03386567,116030.0,116020.0,2.56889028]
[1757735961164,0.05910427,116030.0,116020.0,2.56889028]
[1757735961772,0.05910427,116030.0,116020.0,2.68660362]
[1757735963774,0.0390086,116030.0,116020.0,2.68660362]
[1757735963968,0.0390086,116030.0,116020.0,2.43660362]
[1757735964169,0.0390086,116030.0,116020.0,2.77275042]
[1757735968279,0.01377,116030.0,116020.0,2.77275042]
[1757735968576,0.01377,116030.0,116020.0,2.4196104]
[1757735968879,0.01377,116030.0,116020.0,2.84140769]
[1757735972479,0.01377,116030.0,116020.0,4.4080639]
[1757735974573,0.01377,116030.0,116020.0,4.14338767]
[1757735974776,0.01377,116030.0,116020.0,4.4080639]
[1757735977686,0.03918349,116030.0,116020.0,4.4080639]
[1757735978187,0.03918349,116030.0,116020.0,4.4070639]
[1757735978985,0.03918349,116030.0,116020.0,3.5185971]
[1757735979383,0.03918349,116030.0,116020.0,4.0708771]
[1757735980992,0.03918349,116030.0,116020.0,3.00392087]
[1757735981190,0.03918349,116030.0,116020.0,4.0707971]
[1757735981391,0.03918349,116030.0,116020.0,3.80612087]
[1757735981592,0.03918349,116030.0,116020.0,4.0707971]
[1757735985199,0.03918349,116030.0,116020.0,3.19139623]
[1757735985404,0.28918349,116030.0,116020.0,3.99343623]
[1757735996904,0.28918349,116030.0,116020.0,3.72876]
[1757735997109,0.28918349,116030.0,116020.0,3.99343623]
[1757735998912,0.28918349,116030.0,116020.0,3.27183623]